bitfinex/quotes_BTCUSD_20250224
["timestamp","ask_amount","ask_price","bid_price","bid_amount"]
[1740391807879,1.003,95896.0,95895.0,0.00183166]
[1740391808180,1.003,95896.0,95895.0,0.00283166]
[1740391808407,1.0,95896.0,95895.0,0.00283166]
[1740391808612,1.001,95896.0,95895.0,0.00283166]
[1740391808941,1.0,95896.0,95895.0,0.00283166]
[1740391809243,1.0,95896.0,95895.0,0.00483166]
[1740391809451,1.0,95896.0,95895.0,0.00383166]
[1740391809862,1.0,95896.0,95895.0,0.00483166]
[1740391810293,1.0077953,95896.0,95895.0,0.00383166]
[1740391810524,1.0077953,95896.0,95895.0,0.00483166]
[1740391810862,1.0077953,95896.0,95895.0,0.00383166]
[1740391811264,1.0077953,95896.0,95895.0,0.00483166]
[1740391811459,1.0077953,95896.0,95895.0,0.00283166]
[1740391811663,1.0077953,95896.0,95895.0,0.00383166]
[1740391812065,1.0077953,95896.0,95895.0,0.00283166]
[1740391812261,1.0077953,95896.0,95895.0,0.00383166]
[1740391813310,1.0077953,95896.0,95895.0,0.00283166]
[1740391813887,1.0077953,95896.0,95895.0,0.00383166]
[1740391819149,1.1642143,95896.0,95895.0,0.00383166]
[1740391820190,1.0077953,95896.0,95895.0,0.00383166]
[1740391823585,1.1642143,95896.0,95895.0,0.00383166]
[1740391824869,1.0077953,95896.0,95895.0,0.00383166]
[1740391825274,1.1642143,95896.0,95895.0,0.00383166]
[1740391826308,1.0077953,95896.0,95895.0,0.00383166]
[1740391827693,1.1642143,95896.0,95895.0,0.00383166]
[1740391828081,1.0077953,95896.0,95895.0,0.00383166]
[1740391828517,0.73131566,95896.0,95895.0,0.00383166]
[1740391832378,0.87993936,95896.0,95895.0,0.00383166]
[1740391832582,0.89448021,95896.0,95895.0,0.00383166]
[1740391833003,0.90228634,95896.0,95895.0,0.00383166]
[1740391833538,0.90228634,95896.0,95895.0,0.00283166]
[1740391834150,0.90228634,95896.0,95895.0,0.00183166]
[1740391834761,0.90328634,95896.0,95895.0,0.00183166]
[1740391835134,0.90228634,95896.0,95895.0,0.00183166]
[1740391835539,0.90328634,95896.0,95895.0,0.00183166]
[1740391835996,1.00593203,95896.0,95895.0,0.00183166]
[1740391844674,1.00678183,95896.0,95895.0,0.00183166]
[1740391848896,0.85431412,95896.0,95895.0,0.00183166]
[1740391853602,0.59524943,95896.0,95895.0,0.00183166]
[1740391853979,0.58070858,95896.0,95895.0,0.00183166]
[1740391854758,0.73712758,95896.0,95895.0,0.00183166]
[1740391855372,0.75166843,95896.0,95895.0,0.00183166]
[1740391855778,0.85431412,95896.0,95895.0,0.00183166]
[1740391861634,0.58070858,95896.0,95895.0,0.15825266]
[1740391861843,0.58070858,95896.0,95895.0,0.24045266]
[1740391863395,0.57970858,95896.0,95895.0,0.08403166]
[1740391863616,0.57970858,95896.0,95895.0,0.24045266]
[1740391863823,0.58070858,95896.0,95895.0,0.24045266]
[1740391864380,0.57970858,95896.0,95895.0,0.24045266]
[1740391864560,0.58070858,95896.0,95895.0,0.24045266]
[1740391869529,0.58070858,95896.0,95895.0,0.34309835]
[1740391869650,0.58070858,95896.0,95895.0,0.38919835]
[1740391870453,0.57290245,95896.0,95895.0,0.38919835]
[1740391870658,0.57290245,95896.0,95895.0,0.53919835]
[1740391870863,0.57190245,95896.0,95895.0,0.53919835]
[1740391871308,0.57190245,95896.0,95895.0,0.54019835]
[1740391871505,0.57190245,95896.0,95895.0,0.53919835]
[1740391871717,0.57190245,95896.0,95895.0,0.54119835]
[1740391871920,0.57190245,95896.0,95895.0,0.39119835]
[1740391872220,0.57190245,95896.0,95895.0,0.28855266]
[1740391872423,0.57190245,95896.0,95895.0,0.13213166]
[1740391872860,0.60841739,95896.0,95895.0,0.08803166]
[1740391873061,0.57190245,95896.0,95895.0,0.08803166]
[1740391873602,0.57969002,95896.0,95895.0,0.08803166]
[1740391875051,0.57969002,95896.0,95895.0,0.00583166]
[1740391876347,0.40732453,95896.0,95895.0,0.00583166]
[1740391876753,0.56374353,95896.0,95895.0,0.00583166]
[1740391877393,0.40732453,95896.0,95895.0,0.00583166]
[1740391877572,0.56374353,95896.0,95895.0,0.00583166]
[1740391878145,0.40732453,95896.0,95895.0,0.00583166]
[1740391879185,0.56374353,95896.0,95895.0,0.00583166]
[1740391880545,0.56374353,95896.0,95895.0,0.00183166]
[1740391881002,0.56474353,95896.0,95895.0,0.00183166]
[1740391881439,0.56374353,95896.0,95895.0,0.00183166]
[1740391881780,0.56474353,95896.0,95895.0,0.00183166]
[1740391882393,0.76393007,95896.0,95895.0,0.00183166]
[1740391883459,0.76293007,95896.0,95895.0,0.00183166]
[1740391883797,0.76693007,95896.0,95895.0,0.00183166]
[1740391883998,0.76993007,95896.0,95895.0,0.00183166]
[1740391884244,0.76593007,95896.0,95895.0,0.00183166]
[1740391884625,0.76993007,95896.0,95895.0,0.00183166]
[1740391886006,0.68793007,95896.0,95895.0,0.00183166]
[1740391886498,0.58528438,95896.0,95895.0,0.00183166]
[1740391887341,0.57828438,95896.0,95895.0,0.00183166]
[1740391887543,0.41432453,95896.0,95895.0,0.00183166]
[1740391887749,0.41432453,95896.0,95895.0,0.15825266]
[1740391887952,0.41132453,95896.0,95895.0,0.15825266]
[1740391888152,0.41032453,95896.0,95895.0,0.15825266]
[1740391890483,0.41432453,95896.0,95895.0,0.15825266]
[1740391891113,0.41032453,95896.0,95895.0,0.15825266]
[1740391891622,0.41132453,95896.0,95895.0,0.15825266]
[1740391893588,0.41132453,95896.0,95895.0,0.00183166]
[1740391896569,0.42378102,95896.0,95895.0,0.00183166]
[1740391898480,0.41132453,95896.0,95895.0,0.00183166]
[1740391901087,0.41132453,95896.0,95895.0,0.08293166]
[1740391901342,0.41132453,95896.0,95895.0,0.23935266]
[1740391901563,0.41132453,95896.0,95895.0,0.38839835]
[1740391902125,0.41032453,95896.0,95895.0,0.38839835]
[1740391902323,0.41032453,95896.0,95895.0,0.38939835]
[1740391902726,0.40253696,95896.0,95895.0,0.38939835]
[1740391903582,0.39953696,95896.0,95895.0,0.38939835]
[1740391903738,0.39953696,95896.0,95895.0,0.39139835]
[1740391917479,0.18304453,95896.0,95895.0,0.39139835]
[1740391918769,0.18304453,95896.0,95895.0,0.08593166]
[1740391918972,0.18304453,95896.0,95895.0,0.00483166]
[1740391920394,0.19082991,95896.0,95895.0,0.00483166]
[1740391920804,0.19082991,95896.0,95895.0,0.16125266]
[1740391923563,0.18304453,95896.0,95895.0,0.16125266]
[1740391927303,0.18304453,95896.0,95895.0,0.26389835]
[1740391929019,0.18304453,95896.0,95895.0,0.29405122]
[1740391929225,0.18304453,95896.0,95895.0,0.26389835]
[1740391929872,0.18304453,95896.0,95895.0,0.34519835]
[1740391933056,0.18304453,95896.0,95895.0,0.37641336]
[1740391934547,0.18304453,95896.0,95895.0,0.52341336]
[1740391934748,0.18304453,95896.0,95895.0,0.52441336]
[1740391934979,0.18304453,95896.0,95895.0,0.52641336]
[1740391936546,0.18304453,95896.0,95895.0,0.84781336]
[1740391937858,0.18304453,95896.0,95895.0,0.89451336]
[1740391946826,0.03366912,95930.0,95896.0,0.15]
[1740391947060,0.03366912,95930.0,95897.0,0.10410512]
[1740391947254,0.06037567,95930.0,95900.0,0.14264308]
[1740391947443,0.06037567,95930.0,95901.0,0.10410512]
[1740391948012,0.0077796,95929.0,95901.0,0.10410512]
[1740391948439,0.00751158,95929.0,95902.0,0.3214]
[1740391948662,0.00751158,95929.0,95903.0,0.10410512]
[1740391949396,0.07522547,95930.0,95903.0,0.10410512]
[1740391949567,0.06822547,95930.0,95903.0,0.10410512]
[1740391949990,0.07522547,95930.0,95903.0,0.10410512]
[1740391950277,0.06122547,95930.0,95903.0,0.10410512]
[1740391950700,0.007,95929.0,95903.0,0.10410512]
[1740391951947,0.06122547,95930.0,95903.0,0.10410512]
[1740391952150,0.007,95929.0,95903.0,0.10410512]
[1740391952347,0.007,95929.0,95904.0,0.079]
[1740391952601,0.007,95929.0,95905.0,0.10410512]
[1740391953004,0.014,95929.0,95905.0,0.10410512]
[1740391953440,0.007,95929.0,95905.0,0.10410512]
[1740391953601,0.06122547,95930.0,95905.0,0.10410512]
[1740391953808,0.014,95929.0,95905.0,0.10410512]
[1740391954388,0.007,95929.0,95905.0,0.10410512]
[1740391954589,0.06122547,95930.0,95905.0,0.10410512]
[1740391954807,0.06822547,95930.0,95905.0,0.10410512]
[1740391955023,0.07522547,95930.0,95905.0,0.10410512]
[1740391955493,0.007,95929.0,95905.0,0.10410512]
[1740391955693,0.007,95929.0,95905.0,0.13537008]
[1740391956193,0.014,95929.0,95905.0,0.13537008]
[1740391956916,0.007,95929.0,95905.0,0.13537008]
[1740391957118,0.007,95929.0,95905.0,0.10410512]
[1740391958176,0.014,95929.0,95905.0,0.10410512]
[1740391962124,0.00778576,95928.0,95905.0,0.10410512]
[1740391963318,0.02178576,95928.0,95905.0,0.10410512]
[1740391963964,0.00778576,95927.0,95905.0,0.10410512]
[1740391965482,0.01478576,95927.0,95911.0,0.1262]
[1740391965685,0.01478576,95927.0,95912.0,0.10410512]
[1740391965814,0.00778576,95926.0,95912.0,0.10410512]
[1740391966434,0.00778576,95926.0,95912.0,0.07006163]
[1740391966656,0.00778576,95926.0,95913.0,0.00145944]
[1740391966834,0.00778576,95926.0,95913.0,0.10410513]
[1740391967273,0.00778576,95925.0,95914.0,0.0816]
[1740391967627,0.00778576,95925.0,95915.0,0.00145944]
[1740391967851,0.00778576,95925.0,95916.0,0.10264569]
[1740391968055,0.00778576,95925.0,95917.0,0.00145938]
[1740391968257,0.00778576,95925.0,95918.0,0.00145938]
[1740391968477,0.00778576,95924.0,95918.0,0.00145938]
[1740391969485,0.00778576,95923.0,95918.0,0.03603474]
[1740391971100,0.00778576,95922.0,95918.0,0.0047222]
[1740391971309,0.00778576,95922.0,95918.0,0.00145938]
[1740391972541,0.00778576,95921.0,95918.0,0.00145938]
[1740391973572,0.00978576,95921.0,95918.0,0.00145938]
[1740391973787,0.002,95921.0,95920.0,0.15638]
[1740391973992,0.002,95921.0,95920.0,0.15783938]
[1740391975334,0.005,95921.0,95920.0,0.15783938]
[1740391975537,0.005,95921.0,95920.0,0.23283938]
[1740391975735,0.005,95921.0,95920.0,0.33402569]
[1740391975933,0.0008497,95926.0,95925.0,0.156372]
[1740391976193,0.0008497,95926.0,95925.0,0.151372]
[1740391977378,0.0038497,95926.0,95925.0,0.151372]
[1740391977896,0.01663092,95926.0,95925.0,0.151372]
[1740391978800,0.01667405,95926.0,95925.0,0.151372]
[1740391983173,0.01667405,95926.0,95921.0,0.208502]
[1740391983371,0.01667405,95926.0,95925.0,0.156372]
[1740391983547,0.01167405,95926.0,95925.0,0.156372]
[1740391983870,0.01267405,95926.0,95923.0,0.208498]
[1740391984075,0.01567405,95926.0,95911.0,0.3709]
[1740391984305,0.01567405,95926.0,95912.0,0.10264569]
[1740391984478,0.16804405,95926.0,95912.0,0.10264569]
[1740391984691,0.01567405,95926.0,95911.0,0.3214]
[1740391984903,0.14264308,95922.0,95911.0,0.3214]
[1740391985313,0.14264308,95921.0,95911.0,0.3214]
[1740391986996,0.14264308,95921.0,95903.0,0.2324992]
[1740391986997,0.14364308,95921.0,95903.0,0.2324992]
[1740391987197,0.14364308,95921.0,95904.0,0.10264569]
[1740391988007,0.14564308,95921.0,95904.0,0.10264569]
[1740391988564,0.14264308,95921.0,95904.0,0.10264569]
[1740391988974,0.14364308,95921.0,95904.0,0.10264569]
[1740391989196,0.14464308,95921.0,95904.0,0.10264569]
[1740391989637,0.35314908,95921.0,95904.0,0.10264569]
[1740391989844,0.00145948,95920.0,95904.0,0.10264569]
[1740391990070,0.208509,95919.0,95904.0,0.10264569]
[1740391990521,0.156385,95917.0,95904.0,0.10264569]
[1740391990897,0.35214808,95921.0,95904.0,0.10264569]
[1740391991128,0.15784048,95920.0,95904.0,0.10264569]
[1740391991302,0.15884048,95920.0,95904.0,0.10264569]
[1740391991712,0.15784048,95920.0,95904.0,0.10264569]
[1740391991906,0.15884048,95920.0,95904.0,0.10264569]
[1740391992110,0.156382,95919.0,95904.0,0.10264569]
[1740391992556,0.00245948,95920.0,95904.0,0.10264569]
[1740391992760,0.156383,95918.0,95904.0,0.10264569]
[1740391993187,0.156385,95917.0,95904.0,0.10264569]
[1740391993389,0.156383,95918.0,95904.0,0.10264569]
[1740391994051,0.35114908,95921.0,95904.0,0.10264569]
[1740391994253,0.00145948,95920.0,95904.0,0.10264569]
[1740391994462,0.156385,95917.0,95904.0,0.10264569]
[1740391994935,0.156388,95916.0,95904.0,0.10264569]
[1740391995127,0.001,95918.0,95904.0,0.10264569]
[1740391996367,0.156382,95919.0,95904.0,0.10264569]
[1740391997197,0.156382,95919.0,95904.0,0.10434489]
[1740391997398,0.001,95918.0,95904.0,0.10434489]
[1740391997618,0.157384,95918.0,95904.0,0.10434489]
[1740391997813,0.156384,95918.0,95904.0,0.10434489]
[1740391998215,0.00145948,95920.0,95904.0,0.10434489]
[1740391998420,0.209509,95919.0,95904.0,0.10434489]
[1740391998627,0.00777693,95917.0,95904.0,0.10434489]
[1740392000437,0.00777693,95916.0,95904.0,0.10434489]
[1740392001441,0.00777693,95915.0,95904.0,0.10434489]
[1740392001833,0.00777693,95915.0,95904.0,0.10534489]
[1740392002672,0.15042001,95914.0,95904.0,0.0016992]
[1740392002960,0.15042001,95914.0,95904.0,0.0026992]
[1740392003204,0.00777693,95914.0,95904.0,0.0026992]
[1740392003323,0.00777693,95914.0,95904.0,0.0036992]
[1740392003522,0.16416693,95914.0,95904.0,0.0036992]
[1740392003781,0.156392,95913.0,95904.0,0.0036992]
[1740392003966,0.156392,95913.0,95904.0,0.0026992]
[1740392004178,0.16416893,95913.0,95904.0,0.0026992]
[1740392004912,0.156398,95909.0,95904.0,0.0016992]
[1740392005134,0.00923641,95913.0,95904.0,0.0046992]
[1740392005313,0.00777693,95913.0,95904.0,0.0046992]
[1740392005537,0.00777693,95912.0,95904.0,0.0046992]
[1740392005939,0.00777693,95912.0,95904.0,0.0026992]
[1740392006125,0.00777693,95912.0,95904.0,0.0056992]
[1740392006328,0.00777693,95912.0,95904.0,0.0046992]
[1740392006673,0.00777693,95911.0,95904.0,0.0076992]
[1740392007078,0.00777693,95911.0,95904.0,0.0046992]
[1740392007478,0.00777693,95911.0,95904.0,0.0016992]
[1740392007897,0.16417193,95911.0,95904.0,0.0016992]
[1740392008143,0.00777693,95910.0,95904.0,0.0016992]
[1740392008953,0.156404,95905.0,95904.0,0.0016992]
[1740392009156,0.00777693,95910.0,95904.0,0.0016992]
[1740392009157,0.156403,95906.0,95904.0,0.0016992]
[1740392009411,0.156401,95908.0,95904.0,0.0026992]
[1740392009712,0.00777693,95909.0,95904.0,0.0026992]
[1740392010050,0.156402,95907.0,95904.0,0.0026992]
[1740392010236,0.21630893,95909.0,95904.0,0.0026992]
[1740392010434,0.156402,95907.0,95904.0,0.0016992]
[1740392010657,0.00777693,95906.0,95904.0,0.0026992]
[1740392010867,0.00777693,95906.0,95904.0,0.0046992]
[1740392011066,0.00777693,95906.0,95904.0,0.0016992]
[1740392011545,0.00777693,95906.0,95904.0,0.0036992]
[1740392011686,0.00777693,95906.0,95904.0,0.0026992]
[1740392011886,0.00777693,95905.0,95904.0,0.0046992]
[1740392012706,0.00777693,95905.0,95904.0,0.0036992]
[1740392013184,0.00777693,95905.0,95904.0,0.0056992]
[1740392013525,0.00777693,95905.0,95904.0,0.0036992]
[1740392013755,0.00777693,95905.0,95904.0,0.0016992]
[1740392013956,0.00777693,95905.0,95904.0,0.0056992]
[1740392014786,0.29906325,95914.0,95904.0,0.0056992]
[1740392014942,0.156391,95913.0,95904.0,0.0056992]
[1740392015347,0.156397,95910.0,95904.0,0.0056992]
[1740392015754,0.156397,95910.0,95904.0,0.0036992]
[1740392016630,0.156395,95911.0,95904.0,0.0016992]
[1740392017475,0.156395,95911.0,95904.0,0.0026992]
[1740392020120,0.208525,95912.0,95904.0,0.0026992]
[1740392020356,0.156396,95911.0,95904.0,0.0026992]
[1740392022507,0.156397,95910.0,95904.0,0.0026992]
[1740392022891,0.09054225,95914.0,95904.0,0.0026992]
[1740392023297,0.156404,95905.0,95904.0,0.0016992]
[1740392023724,0.156404,95905.0,95904.0,0.0026992]
[1740392023929,0.208524,95912.0,95904.0,0.0016992]
[1740392024151,0.156403,95906.0,95904.0,0.0016992]
[1740392025055,0.156403,95906.0,95904.0,0.0036992]
[1740392025599,0.156403,95906.0,95904.0,0.0056992]
[1740392025819,0.208535,95907.0,95904.0,0.0056992]
[1740392026129,0.156404,95905.0,95904.0,0.0036992]
[1740392026364,0.156404,95905.0,95904.0,0.0016992]
[1740392026568,0.156404,95905.0,95904.0,0.0056992]
[1740392026743,0.09054225,95914.0,95904.0,0.0036992]
[1740392026920,0.09054225,95914.0,95904.0,0.0016992]
[1740392027238,0.156397,95910.0,95904.0,0.0036992]
[1740392027456,0.156397,95910.0,95904.0,0.0016992]
[1740392027799,0.156397,95910.0,95904.0,0.0036992]
[1740392028050,0.156397,95910.0,95904.0,0.0016992]
[1740392028422,0.156397,95910.0,95904.0,0.0036992]
[1740392028866,0.156394,95912.0,95904.0,0.0016992]
[1740392029011,0.156392,95913.0,95904.0,0.0016992]
[1740392029207,0.156393,95912.0,95904.0,0.0016992]
[1740392029967,0.156393,95912.0,95904.0,0.0026992]
[1740392030184,0.156393,95912.0,95904.0,0.0016992]
[1740392031686,0.001,95912.0,95904.0,0.0016992]
[1740392032456,0.157394,95912.0,95904.0,0.0016992]
[1740392032886,0.156396,95911.0,95904.0,0.0016992]
[1740392033088,0.156396,95910.0,95904.0,0.0016992]
[1740392033462,0.156395,95911.0,95904.0,0.0016992]
[1740392034921,0.09139195,95914.0,95904.0,0.0016992]
[1740392035297,0.1564,95908.0,95904.0,0.0016992]
[1740392036191,0.156401,95907.0,95904.0,0.0016992]
[1740392036636,0.208532,95909.0,95904.0,0.0016992]
[1740392036637,0.156399,95909.0,95904.0,0.0016992]
[1740392036822,0.156397,95910.0,95904.0,0.0016992]
[1740392037023,0.24878195,95914.0,95904.0,0.0026992]
[1740392037222,0.156392,95913.0,95904.0,0.0016992]
[1740392037471,0.156392,95913.0,95904.0,0.0026992]
[1740392037765,0.156394,95912.0,95904.0,0.0026992]
[1740392038187,0.156394,95912.0,95904.0,0.0016992]
[1740392039296,0.001,95912.0,95904.0,0.0016992]
[1740392044844,0.0018497,95912.0,95904.0,0.0016992]
[1740392055667,0.0018497,95912.0,95905.0,0.0759]
[1740392055854,0.0018497,95912.0,95906.0,0.0476]
[1740392056287,0.0018497,95912.0,95906.0,0.21206855]
[1740392056290,0.0018497,95912.0,95907.0,0.00145961]
[1740392056481,0.0018497,95912.0,95907.0,0.08125961]
[1740392056683,0.0008497,95912.0,95907.0,0.08125961]
[1740392056872,0.00157826,95912.0,95907.0,0.08125961]
[1740392057635,0.00057826,95912.0,95909.0,0.0798]
[1740392057835,0.00057826,95912.0,95910.0,0.10410522]
[1740392057967,0.00057826,95912.0,95911.0,0.0798]
[1740392058171,0.00057826,95912.0,95911.0,0.08125953]
[1740392060595,0.00057826,95912.0,95911.0,0.08525953]
[1740392061116,0.00057826,95912.0,95911.0,0.08925953]
[1740392065187,0.00057826,95912.0,95911.0,0.24100522]
[1740392065396,0.00057826,95912.0,95911.0,0.23954569]
[1740392065751,0.00057826,95912.0,95911.0,0.26083024]
[1740392067008,0.00057826,95912.0,95911.0,0.41083024]
[1740392068556,0.00057826,95912.0,95911.0,0.41409268]
[1740392069550,0.14264308,95950.0,95913.0,0.0764]
[1740392069773,0.15638496,95945.0,95915.0,0.0756]
[1740392069980,4.496e-05,95945.0,95917.0,0.0756]
[1740392070226,4.496e-05,95945.0,95914.0,0.3214]
[1740392070227,0.15638496,95945.0,95919.0,0.0756]
[1740392070378,0.15638496,95945.0,95920.0,0.10264569]
[1740392070974,4.496e-05,95945.0,95920.0,0.10264569]
[1740392071222,0.00604496,95945.0,95920.0,0.10264569]
[1740392071415,4.496e-05,95945.0,95920.0,0.10264569]
[1740392071553,0.15638396,95945.0,95920.0,0.10264569]
[1740392071763,0.16238396,95945.0,95920.0,0.10364569]
[1740392072569,0.156342,95943.0,95920.0,0.10364569]
[1740392072761,0.00604496,95945.0,95920.0,0.10364569]
[1740392072975,0.16238496,95945.0,95920.0,0.10364569]
[1740392073285,0.16938496,95945.0,95920.0,0.10464569]
[1740392073487,0.156341,95944.0,95920.0,0.10364569]
[1740392073685,0.00704496,95945.0,95920.0,0.10364569]
[1740392073961,0.14264308,95940.0,95920.0,0.10364569]
[1740392074372,0.14264308,95940.0,95920.0,0.10464569]
[1740392074997,0.14264308,95940.0,95921.0,0.1283]
[1740392075235,0.156338,95946.0,95923.0,0.0815]
[1740392075437,0.14264308,95950.0,95924.0,0.10264569]
[1740392075641,0.156341,95944.0,95924.0,0.10264569]
[1740392076177,0.156343,95943.0,95924.0,0.10264569]
[1740392076892,0.14264308,95940.0,95924.0,0.10264569]
[1740392079077,0.14364308,95940.0,95924.0,0.10264569]
[1740392079591,0.14264308,95940.0,95924.0,0.10264569]
[1740392079806,0.156341,95944.0,95925.0,0.079]
[1740392080012,0.001,95940.0,95925.0,0.079]
[1740392080962,0.14364308,95940.0,95925.0,0.079]
[1740392081856,0.14264308,95940.0,95925.0,0.079]
[1740392082825,0.156361,95932.0,95925.0,0.079]
[1740392083026,0.14264308,95935.0,95921.0,0.04684496]
[1740392083229,0.14364308,95940.0,95921.0,4.496e-05]
[1740392083230,0.14264308,95931.0,95921.0,4.496e-05]
[1740392083581,0.156364,95930.0,95921.0,4.496e-05]
[1740392083785,0.14264308,95931.0,95921.0,4.496e-05]
[1740392084414,0.18984308,95940.0,95921.0,4.496e-05]
[1740392084623,0.14264308,95940.0,95921.0,4.496e-05]
[1740392084834,0.001,95932.0,95922.0,0.1249]
[1740392085224,0.16454085,95944.0,95922.0,0.1249]
[1740392085362,0.15634,95945.0,95922.0,0.1249]
[1740392085363,0.10264569,95943.0,95922.0,0.1249]
[1740392085576,0.001,95931.0,95922.0,0.1249]
[1740392085987,0.29899208,95940.0,95922.0,0.1249]
[1740392086402,0.15635,95939.0,95922.0,0.1249]
[1740392086627,0.14264308,95940.0,95922.0,0.1249]
[1740392086932,0.15635,95939.0,95922.0,0.1249]
[1740392087297,0.14264308,95940.0,95922.0,0.1249]
[1740392087505,0.35110808,95940.0,95922.0,0.1249]
[1740392087712,0.14264308,95940.0,95922.0,0.1249]
[1740392087914,0.156361,95932.0,95922.0,0.1249]
[1740392088122,0.14364308,95940.0,95922.0,0.1249]
[1740392088331,0.208467,95938.0,95922.0,0.1249]
[1740392088760,0.14264308,95940.0,95922.0,0.1249]
[1740392088977,0.001,95932.0,95922.0,0.1249]
[1740392089627,0.156353,95937.0,95922.0,0.1249]
[1740392090049,0.156354,95936.0,95922.0,0.1249]
[1740392090207,0.14264308,95940.0,95922.0,0.1249]
[1740392090404,0.156352,95937.0,95922.0,0.1249]
[1740392090628,0.35110808,95940.0,95922.0,0.1249]
[1740392090837,0.156357,95934.0,95922.0,0.1249]
[1740392091048,0.156356,95935.0,95922.0,0.1249]
[1740392091229,0.001,95938.0,95922.0,0.1249]
[1740392091435,0.156357,95935.0,95922.0,0.1249]
[1740392092278,0.208465,95939.0,95922.0,0.1249]
[1740392092485,0.156354,95937.0,95922.0,0.1249]
[1740392093438,0.156355,95936.0,95922.0,0.1249]
[1740392094154,0.001,95935.0,95922.0,0.1249]
[1740392094765,0.156357,95934.0,95922.0,0.1249]
[1740392094962,0.156358,95934.0,95922.0,0.1249]
[1740392095367,0.001,95936.0,95922.0,0.1249]
[1740392095561,0.156358,95934.0,95922.0,0.1249]
[1740392096003,0.208478,95933.0,95922.0,0.1249]
[1740392096210,0.156368,95928.0,95922.0,0.0756]
[1740392096460,0.156373,95925.0,95922.0,0.0756]
[1740392096891,0.001,95934.0,95922.0,0.0756]
[1740392097088,0.208481,95932.0,95922.0,0.0756]
[1740392097298,0.156369,95927.0,95922.0,0.0766]
[1740392097499,0.156367,95928.0,95922.0,0.0756]
[1740392097902,0.156367,95928.0,95922.0,0.0776]
[1740392098327,0.156369,95927.0,95922.0,0.0776]
[1740392098784,0.00777839,95926.0,95922.0,0.0776]
[1740392099820,0.00777839,95926.0,95922.0,0.0756]
[1740392100021,0.00777839,95926.0,95922.0,0.0766]
[1740392100203,0.00777839,95926.0,95922.0,0.0756]
[1740392100379,0.16414939,95926.0,95922.0,0.0756]
[1740392100585,0.156375,95923.0,95922.0,0.0766]
[1740392101615,0.00777839,95925.0,95922.0,0.0766]
[1740392102166,0.00777839,95925.0,95922.0,0.0786]
[1740392102585,0.00777839,95923.0,95922.0,0.0786]
[1740392102792,0.00777839,95923.0,95922.0,0.0776]
[1740392103199,0.00777839,95923.0,95922.0,0.0796]
[1740392103374,0.00777839,95923.0,95922.0,0.0776]
[1740392103735,0.00777839,95923.0,95922.0,0.0786]
[1740392104294,0.00777839,95923.0,95922.0,0.0776]
[1740392104462,0.00777839,95923.0,95922.0,0.0796]
[1740392105943,0.20452741,95929.0,95922.0,0.081299]
[1740392106145,0.208482,95932.0,95922.0,0.081299]
[1740392106489,0.156364,95930.0,95922.0,0.081299]
[1740392106884,0.156364,95930.0,95922.0,0.077299]
[1740392107244,0.156364,95930.0,95922.0,0.078299]
[1740392107443,0.001,95929.0,95922.0,0.077299]
[1740392107835,0.157365,95929.0,95922.0,0.077299]
[1740392108037,0.156365,95929.0,95922.0,0.077299]
[1740392108458,0.156367,95928.0,95922.0,0.077299]
[1740392108908,0.001,95930.0,95922.0,0.077299]
[1740392109114,0.156368,95928.0,95922.0,0.077299]
[1740392109322,0.156371,95926.0,95922.0,0.077299]
[1740392109498,0.156369,95927.0,95922.0,0.077299]
[1740392109860,0.156369,95927.0,95922.0,0.078299]
[1740392110045,0.156369,95927.0,95922.0,0.077299]
[1740392110406,0.156369,95927.0,95922.0,0.078299]
[1740392110709,0.156369,95927.0,95922.0,0.077299]
[1740392110906,0.15637,95927.0,95922.0,0.077299]
[1740392111109,0.156368,95928.0,95922.0,0.077299]
[1740392111318,0.156366,95929.0,95922.0,0.078299]
[1740392111552,0.02,95962.0,95922.0,0.078299]
[1740392111760,0.14264308,95950.0,95924.0,0.0787]
[1740392111969,0.15,95944.0,95924.0,0.0787]
[1740392112176,0.306341,95944.0,95924.0,0.0787]
[1740392112387,0.15,95944.0,95924.0,0.0787]
[1740392112817,0.02100564,95944.0,95924.0,0.0787]
[1740392113016,0.02100564,95944.0,95926.0,0.0818]
[1740392113229,0.21885986,95953.0,95931.0,0.0818]
[1740392113438,0.21885986,95953.0,95932.0,0.0478]
[1740392113645,0.15,95952.0,95933.0,0.0818]
[1740392114295,0.001,95944.0,95933.0,0.0818]
[1740392114726,0.02077352,95944.0,95933.0,0.0818]
[1740392114946,0.37518586,95953.0,95933.0,0.0818]
[1740392115159,0.0018494,95946.0,95933.0,0.0818]
[1740392116326,0.0008494,95946.0,95933.0,0.0818]
[1740392116737,0.001,95944.0,95933.0,0.0818]
[1740392117246,0.02226343,95946.0,95933.0,0.0818]
[1740392117462,0.02326343,95946.0,95933.0,0.0818]
[1740392118089,0.156348,95940.0,95933.0,0.0818]
[1740392118298,0.35110008,95943.0,95933.0,0.0818]
[1740392118509,0.001,95944.0,95933.0,0.0818]
[1740392118899,0.15635,95939.0,95933.0,0.0818]
[1740392119141,0.001,95944.0,95933.0,0.0818]
[1740392119370,0.001,95944.0,95933.0,0.0828]
[1740392119581,0.15634,95945.0,95933.0,0.0818]
[1740392119789,0.17960143,95946.0,95933.0,0.0828]
[1740392120000,0.156339,95945.0,95933.0,0.0818]
[1740392120212,0.02326343,95946.0,95933.0,0.0818]
[1740392120432,0.02226343,95946.0,95933.0,0.0828]
[1740392120639,0.156343,95943.0,95933.0,0.0818]
[1740392120842,0.16511557,95944.0,95933.0,0.0818]
[1740392120994,0.00877357,95944.0,95933.0,0.0818]
[1740392121200,0.00777357,95944.0,95933.0,0.0818]
[1740392122088,0.02326343,95946.0,95933.0,0.0818]
[1740392122892,0.01454085,95959.0,95933.0,0.0818]
[1740392123124,0.156329,95952.0,95933.0,0.0828]
[1740392123296,0.10264569,95952.0,95933.0,0.0828]
[1740392123642,0.001,95944.0,95933.0,0.0828]
[1740392123851,0.001,95944.0,95933.0,0.0818]
[1740392124026,0.156332,95950.0,95933.0,0.0818]
[1740392124415,0.156335,95948.0,95933.0,0.0818]
[1740392124614,0.156332,95950.0,95933.0,0.0818]
[1740392124815,0.156329,95951.0,95933.0,0.0828]
[1740392125025,0.10264569,95952.0,95933.0,0.0828]
[1740392125026,0.001,95944.0,95933.0,0.0828]
[1740392126039,0.001,95944.0,95933.0,0.0818]
[1740392126239,0.156324,95955.0,95933.0,0.0818]
[1740392126444,0.208427,95957.0,95933.0,0.0818]
[1740392126700,0.156331,95951.0,95933.0,0.0818]
[1740392126846,0.156331,95951.0,95933.0,0.0828]
[1740392127049,0.14264308,95950.0,95933.0,0.0828]